bitfinex/quotes_ETHUSD_20230105
["timestamp","ask_amount","ask_price","bid_price","bid_amount"]
[1672956708198,3.5837904,1252.8,1252.7,28.48461682]
[1672956710678,3.5837904,1252.8,1252.7,20.50186682]
[1672956710993,3.5837904,1252.8,1252.7,28.48461682]
[1672956711688,3.5837904,1252.8,1252.7,36.46736682]
[1672956712208,3.6497904,1252.9,1252.7,36.46736682]
[1672956712564,4.38901522,1252.9,1252.7,28.48461682]
[1672956714773,4.38901522,1252.9,1252.7,36.46736682]
[1672956715717,4.38901522,1252.9,1252.7,28.48461682]
[1672956720327,20.35216522,1252.9,1252.7,12.51911682]
[1672956720534,3.5837904,1252.8,1252.7,12.51911682]
[1672956721143,19.5480304,1252.8,1252.7,12.51911682]
[1672956721359,11.5659104,1252.8,1252.7,12.51911682]
[1672956721563,3.5837904,1252.8,1252.7,20.50186682]
[1672956721931,3.5837904,1252.8,1252.7,12.51911682]
[1672956728025,3.5837904,1252.8,1252.7,12.51618026]
[1672956728891,3.5837904,1252.8,1252.7,20.49893026]
[1672956729241,3.5837904,1252.8,1252.7,12.51618026]
[1672956729569,4.31486842,1252.8,1252.7,12.51618026]
[1672956734738,12.29698842,1252.8,1252.7,12.51618026]
[1672956735934,4.31486842,1252.8,1252.7,12.51618026]
[1672956740030,4.31486842,1252.8,1252.7,20.49893026]
[1672956743495,4.31486842,1252.8,1252.7,28.48168026]
[1672956745348,4.31486842,1252.8,1252.7,20.49893026]
[1672956748095,4.31486842,1252.8,1252.7,20.49618427]
[1672956751431,4.31486842,1252.8,1252.7,12.51343427]
[1672956751630,4.31486842,1252.8,1252.7,20.49618427]
[1672956752196,4.31486842,1252.8,1252.7,12.51343427]
[1672956755087,4.31259737,1252.8,1252.7,12.51343427]
[1672956763345,12.29471737,1252.8,1252.7,12.51343427]
[1672956764546,4.31259737,1252.8,1252.7,12.51343427]
[1672956768755,4.31259737,1252.8,1252.7,20.49618427]
[1672956775266,4.31259737,1252.8,1252.7,12.51343427]
[1672956778527,4.31259737,1252.8,1252.7,12.50994135]
[1672956778735,4.31259737,1252.8,1252.7,20.49269135]
[1672956778908,4.31259737,1252.8,1252.7,12.50994135]
[1672956779560,4.9035999,1252.8,1252.7,12.50994135]
[1672956779770,12.8857199,1252.8,1252.7,12.50994135]
[1672956780170,4.9035999,1252.8,1252.7,12.50994135]
[1672956782407,7.85496489,1252.8,1252.7,12.50994135]
[1672956782780,7.85496489,1252.8,1252.7,20.49269135]
[1672956783045,0.73107802,1252.8,1252.7,20.49269135]
[1672956783422,4.9035999,1252.8,1252.7,20.49269135]
[1672956784140,0.73107802,1252.8,1252.7,20.49269135]
[1672956785352,4.32161889,1252.8,1252.7,20.49269135]
[1672956786437,4.32161889,1252.8,1252.7,12.50994135]
[1672956790391,0.73107802,1252.8,1252.7,12.50994135]
[1672956791417,4.32101344,1252.8,1252.7,12.50994135]
[1672956791837,0.73107802,1252.8,1252.7,12.50994135]
[1672956792050,4.32094774,1252.8,1252.7,12.50994135]
[1672956794385,4.32094774,1252.8,1252.7,28.47544135]
[1672956794703,4.32094774,1252.8,1252.7,36.45819135]
[1672956794914,4.32094774,1252.8,1252.7,20.49269135]
[1672956796856,4.32094774,1252.8,1252.7,29.47544135]
[1672956799277,4.32094774,1252.8,1252.7,29.47249221]
[1672956799801,4.32094774,1252.8,1252.7,21.48974221]
[1672956800515,3.32094774,1252.8,1252.7,21.48974221]
[1672956800760,4.02027293,1252.8,1252.7,21.48974221]
[1672956801062,0.69932519,1252.8,1252.7,21.48974221]
[1672956801280,0.70132519,1252.8,1252.7,21.48674221]
[1672956801428,0.69932519,1252.8,1252.7,21.48974221]
[1672956803602,0.69932519,1252.8,1252.7,13.50699221]
[1672956806380,4.28938999,1252.8,1252.7,13.50699221]
[1672956808699,0.69932519,1252.8,1252.7,13.50699221]
[1672956812484,4.28956908,1252.8,1252.7,13.50699221]
[1672956812856,0.69932519,1252.8,1252.7,13.50699221]
[1672956813208,4.28956115,1252.8,1252.7,13.50699221]
[1672956814275,0.69932519,1252.8,1252.7,13.50699221]
[1672956817381,0.69932519,1252.8,1252.7,21.48974221]
[1672956818425,4.87184707,1252.8,1252.7,21.48974221]
[1672956820049,4.86863414,1252.8,1252.7,21.48974221]
[1672956820727,4.86863414,1252.8,1252.7,13.50699221]
[1672956830354,4.86863414,1252.8,1252.7,21.48974221]
[1672956830789,4.28835657,1252.8,1252.7,21.48974221]
[1672956832561,4.28835657,1252.8,1252.7,13.50699221]
[1672956833669,0.69611226,1252.8,1252.7,13.50699221]
[1672956833886,4.28791957,1252.8,1252.7,13.50699221]
[1672956835772,4.28791957,1252.8,1252.7,21.48974221]
[1672956840388,3.68909827,1252.8,1252.7,54.52634475]
[1672956840602,4.11580089,1252.8,1252.7,49.30334475]
[1672956840886,3.05927614,1252.9,1252.8,5.563]
[1672956841014,3.71542496,1253.0,1252.9,0.29872386]
[1672956841227,3.35442496,1253.0,1252.9,3.98914951]
[1672956841433,3.35442496,1253.0,1252.9,30.93358951]
[1672956841710,0.066,1253.1,1252.9,31.03258951]
[1672956841854,4.80155599,1253.2,1252.9,39.71610586]
[1672956842695,4.80155599,1253.2,1252.9,35.4875095]
[1672956842908,4.80155599,1253.2,1252.9,39.71610586]
[1672956843367,1.46273893,1253.2,1252.9,39.71610586]
[1672956843581,5.63526081,1253.2,1252.9,39.71610586]
[1672956844702,5.63526081,1253.2,1253.0,0.00720427]
[1672956844908,1.366,1253.1,1253.0,23.94972427]
[1672956845116,1.366,1253.1,1253.0,28.39615165]
[1672956848078,4.35214228,1253.1,1253.0,28.39615165]
[1672956851003,6.73969476,1253.1,1253.0,28.39615165]
[1672956851213,6.73969476,1253.1,1253.0,36.37699165]
[1672956858418,3.75355248,1253.1,1253.0,36.37699165]
[1672956858634,6.73969476,1253.1,1253.0,36.37699165]
[1672956858822,3.75355248,1253.1,1253.0,36.37699165]
[1672956865617,3.75355248,1253.1,1253.0,36.37479397]
[1672956868914,3.75355248,1253.1,1253.0,40.36394348]
[1672956869936,6.73969476,1253.1,1253.0,40.36394348]
[1672956870129,3.75355248,1253.1,1253.0,40.36394348]
[1672956870339,3.75355248,1253.1,1253.0,44.59253984]
[1672956870498,1.366,1253.1,1253.0,43.36394348]
[1672956871242,3.75355248,1253.1,1253.0,43.36394348]
[1672956871709,3.75355248,1253.1,1253.0,35.38310348]
[1672956875173,3.75355248,1253.1,1253.0,43.36394348]
[1672956875750,3.75355248,1253.1,1253.0,35.38310348]
[1672956876340,3.75355248,1253.1,1253.0,43.36394348]
[1672956876498,3.75355248,1253.1,1253.0,35.38310348]
[1672956876911,2.38755248,1253.1,1253.0,35.38310348]
[1672956877498,5.37369476,1253.1,1253.0,35.38310348]
[1672956878844,5.37128299,1253.1,1253.0,35.38310348]
[1672956879594,2.98614228,1253.1,1253.0,35.38310348]
[1672956884579,2.98614228,1253.1,1253.0,43.36394348]
[1672956884748,2.98614228,1253.1,1253.0,35.38310348]
[1672956885569,2.93614228,1253.1,1253.0,35.38310348]
[1672956887110,3.67944192,1253.2,1253.0,35.38310348]
[1672956887409,3.61344192,1253.2,1253.0,35.38310348]
[1672956892422,3.61344192,1253.2,1253.0,43.36394348]
[1672956892778,3.61344192,1253.2,1253.0,35.38310348]
[1672956893519,3.61344192,1253.2,1253.0,43.36394348]
[1672956894120,3.61344192,1253.2,1253.0,35.38310348]
[1672956894330,3.61344192,1253.2,1253.1,3.98914951]
[1672956894557,3.61344192,1253.2,1253.1,27.92974951]
[1672956894775,3.61344192,1253.2,1253.1,28.02874951]
[1672956897916,3.02348952,1253.2,1253.1,28.02874951]
[1672956898073,3.61344192,1253.2,1253.1,32.36495186]
[1672956900541,3.61344192,1253.2,1253.1,24.38475186]
[1672956901976,3.61344192,1253.2,1253.1,32.36495186]
[1672956902181,3.61344192,1253.2,1253.1,24.38475186]
[1672956902657,3.61344192,1253.2,1253.1,32.36495186]
[1672956906330,3.61344192,1253.2,1253.1,24.38475186]
[1672956906482,3.61344192,1253.2,1253.1,20.04854951]
[1672956907382,3.61344192,1253.2,1253.1,20.04627594]
[1672956917006,3.61344192,1253.2,1253.1,28.02647594]
[1672956917479,3.61344192,1253.2,1253.1,20.04627594]
[1672956918484,3.61344192,1253.2,1253.1,12.06607594]
[1672956919554,3.61344192,1253.2,1253.1,20.04627594]
[1672956919765,3.61544192,1253.2,1253.1,20.04327594]
[1672956920126,3.61344192,1253.2,1253.1,20.04627594]
[1672956920263,3.61344192,1253.2,1253.1,12.06607594]
[1672956920481,3.61344192,1253.2,1253.1,20.04627594]
[1672956920750,3.61344192,1253.2,1253.1,28.02647594]
[1672956921067,3.61344192,1253.2,1253.1,20.04627594]
[1672956921420,3.61344192,1253.2,1253.1,4.08587594]
[1672956921635,3.61344192,1253.2,1253.1,3.98687594]
[1672956923054,3.61344192,1253.2,1253.1,27.92747594]
[1672956923215,3.61344192,1253.2,1253.1,30.33164119]
[1672956928759,0.03013411,1253.2,1253.1,38.31184119]
[1672956930272,3.0229353,1253.2,1253.1,38.30889597]
[1672956931599,3.0229353,1253.2,1253.1,42.53670615]
[1672956931802,5.4168722,1253.2,1253.1,38.30889597]
[1672956932425,2.42407101,1253.2,1253.1,38.30889597]
[1672956932815,5.4168722,1253.2,1253.1,38.30889597]
[1672956939905,4.6468722,1253.2,1253.1,38.30889597]
[1672956941765,1.65407101,1253.2,1253.1,38.30889597]
[1672956949027,1.65407101,1253.2,1253.1,42.52378233]
[1672956949210,1.65407101,1253.2,1253.1,41.53889597]
[1672956950159,1.65407101,1253.2,1253.1,42.53889597]
[1672956952433,0.65407101,1253.2,1253.1,42.53889597]
[1672956958328,0.65407101,1253.2,1253.1,46.74273553]
[1672956958669,0.08013411,1253.3,1253.1,46.74273553]
[1672956958887,0.08013411,1253.3,1253.2,31.15785951]
[1672956959029,3.0729353,1253.3,1253.2,36.25446594]
[1672956960516,5.46531953,1253.3,1253.2,36.25446594]
[1672956963890,5.46531953,1253.3,1253.2,44.23403594]
[1672956973625,6.47680844,1253.3,1253.2,44.23403594]
[1672956976882,6.47680844,1253.3,1253.2,44.23171847]
[1672956978563,6.47680844,1253.3,1253.2,48.43555803]
[1672956979039,6.47680844,1253.3,1253.2,44.23171847]
[1672956981823,3.48400725,1253.3,1253.2,44.23171847]
[1672956985806,3.48120733,1253.3,1253.2,44.23171847]
[1672956986457,3.48120733,1253.3,1253.2,36.25214847]
[1672956986704,6.47400852,1253.3,1253.2,36.25214847]
[1672956988079,4.08162429,1253.3,1253.2,20.29300847]
[1672956988292,4.08162429,1253.3,1253.2,28.27257847]
[1672956989547,4.08162429,1253.3,1253.2,36.25214847]
[1672957003498,4.08162429,1253.3,1253.2,31.25454204]
[1672957003664,4.67213091,1253.3,1253.2,7.08583204]
[1672957003875,1.0888231,1253.3,1253.2,7.08583204]
[1672957004648,4.67213091,1253.3,1253.2,7.08583204]
[1672957007028,4.67213091,1253.3,1253.2,15.06540204]
[1672957010338,4.67213091,1253.3,1253.2,15.0614394]
[1672957014472,1.0888231,1253.3,1253.2,15.0614394]
[1672957014838,4.67213091,1253.3,1253.2,15.0614394]
[1672957017048,1.0888231,1253.3,1253.2,15.0614394]
[1672957020027,4.67213091,1253.3,1253.2,15.0614394]
[1672957020196,1.0888231,1253.3,1253.2,15.0614394]
[1672957020622,1.0888231,1253.3,1253.2,23.0410094]
[1672957023086,4.67213091,1253.3,1253.2,23.0410094]
[1672957023651,1.0888231,1253.3,1253.2,23.0410094]
[1672957024135,4.67213091,1253.3,1253.2,23.0410094]
[1672957025939,1.0888231,1253.3,1253.2,23.0410094]
[1672957026168,4.67213091,1253.3,1253.2,23.0410094]
[1672957029346,4.67213091,1253.3,1253.2,15.0614394]
[1672957030920,4.67213091,1253.3,1253.2,23.0410094]
[1672957031138,4.67213091,1253.3,1253.2,15.0614394]
[1672957034752,4.67213091,1253.3,1253.2,15.05798039]
[1672957037226,1.0888231,1253.3,1253.2,23.03755039]
[1672957037540,4.08059021,1253.3,1253.2,23.03755039]
[1672957038295,1.0888231,1253.3,1253.2,23.03755039]
[1672957038447,1.0888231,1253.3,1253.2,15.05798039]
[1672957039015,4.08092452,1253.3,1253.2,15.05798039]
[1672957039600,1.0888231,1253.3,1253.2,15.05798039]
[1672957040012,4.67213091,1253.3,1253.2,15.05798039]
[1672957040886,1.0888231,1253.3,1253.2,15.05798039]
[1672957041112,4.67213091,1253.3,1253.2,15.05798039]
[1672957055991,4.67213091,1253.3,1253.2,15.05476762]
[1672957061225,14.4078516,1253.3,1253.2,7.07519762]
[1672957061374,31.55372567,1253.3,1253.2,4.07519762]
[1672957061579,30.95492567,1253.3,1253.2,3.97619762]
[1672957061921,6.43811868,1253.3,1253.2,3.97619762]
[1672957062482,14.41704868,1253.3,1253.2,3.97619762]
[1672957062695,22.39597868,1253.3,1253.2,3.97619762]
[1672957064745,30.37490868,1253.3,1253.2,3.97619762]
[1672957069978,22.39597868,1253.3,1253.2,3.97619762]
[1672957075336,20.63918799,1253.3,1253.2,3.97619762]
[1672957075871,12.66025799,1253.3,1253.2,3.97619762]
[1672957078766,12.66025799,1253.3,1253.2,3.97382229]
[1672957082208,20.63918799,1253.3,1253.2,3.97382229]
[1672957083931,12.66025799,1253.3,1253.2,3.97382229]
[1672957090781,4.68132799,1253.3,1253.2,3.97382229]
[1672957094989,12.66025799,1253.3,1253.2,3.97382229]
[1672957100452,12.66025799,1253.3,1253.2,3.97179939]
[1672957112264,13.24027498,1253.3,1253.2,3.97179939]
[1672957112447,16.23449189,1253.3,1253.2,3.97179939]
[1672957112867,12.06197001,1253.3,1253.2,3.97179939]
[1672957116505,4.08304001,1253.3,1253.2,3.97179939]
[1672957118290,1.0888231,1253.3,1253.2,3.97179939]
[1672957118708,1.08568275,1253.3,1253.2,3.97179939]
[1672957120128,4.67836712,1253.3,1253.2,3.97179939]
[1672957121541,12.65729712,1253.3,1253.2,3.97179939]
[1672957121731,4.67836712,1253.3,1253.2,3.97179939]
[1672957121942,4.67836712,1253.3,1253.2,11.95136939]
[1672957122175,4.67836712,1253.3,1253.2,12.05036939]
[1672957122389,4.67836712,1253.3,1253.2,28.00950939]
[1672957131570,4.67828406,1253.3,1253.2,20.02993939]
[1672957132159,4.67828406,1253.3,1253.2,4.07079939]
[1672957132372,4.67828406,1253.3,1253.2,3.97179939]
[1672957138487,4.67828406,1253.3,1253.2,11.95136939]
[1672957138697,4.67828406,1253.3,1253.2,12.05036939]
[1672957141761,5.03568799,1253.3,1253.2,12.05036939]
[1672957142817,5.03568799,1253.3,1253.2,12.04637347]
[1672957152753,5.03568799,1253.3,1253.2,4.06680347]
[1672957152903,13.01461799,1253.3,1253.2,3.96780347]
[1672957153110,5.03568799,1253.3,1253.2,3.96780347]
[1672957153969,5.61560856,1253.3,1253.2,3.96780347]
[1672957156643,1.44308668,1253.3,1253.2,27.90651347]
[1672957156796,5.03585841,1253.3,1253.2,12.04637347]
[1672957158432,5.03585841,1253.3,1253.2,4.06680347]
[1672957158644,5.03585841,1253.3,1253.2,3.96780347]
[1672957166051,5.03585841,1253.3,1253.2,11.94737347]
[1672957166319,5.03585841,1253.3,1253.2,12.04270879]
[1672957166514,5.03585841,1253.3,1253.2,20.02227879]
[1672957169886,5.03585841,1253.3,1253.2,12.04270879]
[1672957170106,5.03585841,1253.3,1253.2,4.06313879]
[1672957170436,5.03585841,1253.3,1253.2,3.96413879]
[1672957174167,5.03585841,1253.3,1253.2,11.94370879]
[1672957174343,5.03585841,1253.3,1253.2,12.04270879]
[1672957176505,5.03585841,1253.3,1253.2,4.06313879]
[1672957176694,5.03585841,1253.3,1253.2,3.96413879]
[1672957182728,5.03585841,1253.3,1253.2,19.92327879]
[1672957182913,5.03585841,1253.3,1253.2,20.02227879]
[1672957187971,5.03585841,1253.3,1253.2,12.04270879]
[1672957188424,5.03585841,1253.3,1253.2,20.02227879]
[1672957188608,5.03585841,1253.3,1253.2,12.04270879]
[1672957190398,5.03585841,1253.3,1253.2,12.03893536]
[1672957195472,5.03585841,1253.3,1253.2,27.99807536]
[1672957197355,5.03585841,1253.3,1253.2,20.01850536]
[1672957199005,5.03585841,1253.3,1253.2,12.03893536]
[1672957199863,1.44308668,1253.3,1253.2,4.05936536]
[1672957200059,1.44308668,1253.3,1253.2,3.96036536]
[1672957200470,1.44308668,1253.3,1253.2,11.93993536]
[1672957200688,1.44308668,1253.3,1253.2,12.03893536]
[1672957200899,5.03654116,1253.3,1253.2,12.03893536]
[1672957201104,1.44308668,1253.3,1253.2,12.03893536]
[1672957201338,5.03654158,1253.3,1253.2,12.03893536]
[1672957201566,1.44308668,1253.3,1253.2,20.01850536]
[1672957202263,1.44308668,1253.3,1253.2,27.99807536]
[1672957205498,5.03654851,1253.3,1253.2,27.99807536]
[1672957209810,5.03654851,1253.3,1253.2,20.01850536]
[1672957211021,5.03654851,1253.3,1253.2,12.03893536]
[1672957212415,5.03276575,1253.3,1253.2,12.03893536]
[1672957213600,5.03276575,1253.3,1253.2,27.99807536]
[1672957214280,5.03276575,1253.3,1253.2,12.03893536]
[1672957216494,5.03276575,1253.3,1253.2,4.05936536]
[1672957216631,5.03276575,1253.3,1253.2,3.96036536]
[1672957219412,5.03276575,1253.3,1253.2,11.93993536]
[1672957219602,5.03276575,1253.3,1253.2,12.03893536]
[1672957222740,5.03276575,1253.3,1253.2,4.05936536]
[1672957222938,5.03276575,1253.3,1253.2,3.96036536]
[1672957226466,5.6118258,1253.3,1253.2,3.96036536]
[1672957226682,5.6118258,1253.3,1253.1,1.10389741]
[1672957226683,31.4772229,1253.3,1253.1,1.10389741]
[1672957226897,3.59201032,1253.2,1253.1,7.99404692]
[1672957227196,11.57158032,1253.2,1253.1,8.09304692]
[1672957235613,11.57158032,1253.2,1253.1,8.09021108]
[1672957238332,27.53072032,1253.2,1253.1,4.10106157]
[1672957238524,31.4560981,1253.2,1253.1,0.99716416]
[1672957238733,32.0549981,1253.2,1253.1,0.99716416]
[1672957242680,32.1049981,1253.2,1253.1,0.99716416]
[1672957242869,27.88247622,1253.2,1253.1,0.99716416]
[1672957244134,32.0549981,1253.2,1253.1,0.99716416]
[1672957244936,27.88247622,1253.2,1253.1,0.99716416]
[1672957246196,35.86204622,1253.2,1253.1,0.99716416]
[1672957247038,27.88247622,1253.2,1253.1,0.99716416]
[1672957250848,27.93247622,1253.2,1253.1,0.99716416]
[1672957251188,31.46621907,1253.2,1253.1,0.99716416]
[1672957252032,27.88247622,1253.2,1253.1,0.99716416]
[1672957253040,31.46657322,1253.2,1253.1,0.99716416]
[1672957253244,27.88247622,1253.2,1253.1,0.99716416]
[1672957258019,27.88247622,1253.2,1253.1,0.99446122]
[1672957258869,32.0549981,1253.2,1253.1,0.99446122]
[1672957264445,31.4560981,1253.2,1253.1,0.99446122]
[1672957274534,15.4969581,1253.2,1253.1,0.99446122]
[1672957274867,23.4765281,1253.2,1253.1,0.99446122]
[1672957275195,31.4560981,1253.2,1253.1,0.99446122]
[1672957276847,27.28357622,1253.2,1253.1,0.99446122]
[1672957280122,27.28357622,1253.2,1253.1,0.99123454]
[1672957281418,19.30400622,1253.2,1253.1,0.99123454]
[1672957282556,27.28357622,1253.2,1253.1,0.99123454]
[1672957284567,19.30400622,1253.2,1253.1,0.99123454]
[1672957285422,27.28357622,1253.2,1253.1,0.99123454]
[1672957286608,19.30400622,1253.2,1253.1,0.99123454]
[1672957287724,27.28357622,1253.2,1253.1,0.99123454]
[1672957289997,19.30400622,1253.2,1253.1,0.99123454]
[1672957290792,27.28357622,1253.2,1253.1,0.99123454]
[1672957297467,31.47468218,1253.2,1253.1,0.99123454]
[1672957298891,27.28357622,1253.2,1253.1,0.99123454]
[1672957299079,31.47468352,1253.2,1253.1,0.99123454]
[1672957300531,39.45428377,1253.2,1253.1,0.98867377]
[1672957300731,27.28357622,1253.2,1253.1,0.98867377]
[1672957301175,31.47467064,1253.2,1253.1,0.98867377]
[1672957301363,27.28357622,1253.2,1253.1,0.98867377]
[1672957306463,27.33357622,1253.2,1253.1,0.98867377]
[1672957306648,27.28357622,1253.2,1253.1,0.98867377]
[1672957310515,27.33357622,1253.2,1253.1,0.98867377]
[1672957310820,27.28357622,1253.2,1253.1,0.98867377]
[1672957311230,3.34486622,1253.2,1253.1,0.98867377]
[1672957311444,23.93871,1253.2,1253.1,0.98867377]
[1672957312084,28.88964106,1253.2,1253.1,0.98867377]
[1672957323607,28.88964106,1253.2,1253.1,0.98542232]
[1672957326904,29.88285812,1253.2,1253.1,0.98542232]
[1672957333074,24.93192706,1253.2,1253.1,0.98542232]
[1672957333544,29.88285812,1253.2,1253.1,0.98542232]
[1672957333756,34.27764446,1253.2,1253.1,0.98542232]
[1672957339386,34.22064446,1253.2,1253.1,0.98542232]
[1672957339562,34.17064446,1253.2,1253.1,0.98542232]
[1672957349111,42.15021446,1253.2,1253.1,0.98542232]
[1672957349652,42.20021446,1253.2,1253.1,0.98542232]
[1672957349881,42.15021446,1253.2,1253.1,0.98542232]
[1672957350221,34.17064446,1253.2,1253.1,0.98542232]
[1672957350745,42.15021446,1253.2,1253.1,0.98542232]
[1672957350977,34.17064446,1253.2,1253.1,0.98542232]
[1672957353554,42.15021446,1253.2,1253.1,0.98542232]
[1672957353767,34.22064446,1253.2,1253.1,0.98542232]
[1672957353997,34.17064446,1253.2,1253.1,0.98542232]
[1672957355553,42.15021446,1253.2,1253.1,0.98542232]
[1672957357151,34.17064446,1253.2,1253.1,0.98542232]
[1672957358811,42.15021446,1253.2,1253.1,0.98542232]
[1672957360093,34.17064446,1253.2,1253.1,0.98542232]
[1672957363206,34.17064446,1253.2,1253.1,0.98303392]
[1672957364048,34.22064446,1253.2,1253.1,0.98303392]
[1672957364436,34.17064446,1253.2,1253.1,0.98303392]
[1672957376393,34.22064446,1253.2,1253.1,0.98303392]
[1672957376603,34.17064446,1253.2,1253.1,0.98303392]
[1672957382658,34.22064446,1253.2,1253.1,0.98303392]
[1672957382868,34.17064446,1253.2,1253.1,0.98303392]
[1672957384807,35.13895967,1253.2,1253.1,0.98303392]
[1672957385173,35.13577901,1253.2,1253.1,0.98303392]
[1672957386370,29.21653274,1253.2,1253.1,0.98303392]
[1672957386709,29.26653274,1253.2,1253.1,0.98303392]
[1672957386927,29.21653274,1253.2,1253.1,0.98303392]
[1672957394953,34.16543366,1253.2,1253.1,0.98303392]
[1672957395423,29.21653274,1253.2,1253.1,0.98303392]
[1672957396412,34.1655541,1253.2,1253.1,0.98303392]
[1672957396994,34.2155541,1253.2,1253.1,0.98303392]
[1672957397207,34.1655541,1253.2,1253.1,0.98303392]
[1672957401422,29.21653274,1253.2,1253.1,0.98303392]
[1672957401737,29.6203102,1253.2,1253.1,0.98303392]
[1672957403056,37.5998802,1253.2,1253.1,0.98303392]
[1672957403372,34.56910947,1253.2,1253.1,0.98303392]
[1672957407320,34.61910947,1253.2,1253.1,0.97959789]
[1672957407516,34.56910947,1253.2,1253.1,0.97959789]
[1672957408731,29.6203102,1253.2,1253.1,0.97959789]
[1672957409846,34.56928758,1253.2,1253.1,0.97959789]
[1672957411411,29.6203102,1253.2,1253.1,0.97959789]
[1672957411830,34.56949592,1253.2,1253.1,0.97959789]
[1672957412414,34.56950695,1253.2,1253.1,0.97959789]
[1672957412796,34.56953017,1253.2,1253.1,0.97959789]
[1672957413338,29.6203102,1253.2,1253.1,0.97959789]
[1672957414752,34.56945888,1253.2,1253.1,0.97959789]
[1672957415381,42.54902888,1253.2,1253.1,0.97959789]
[1672957415572,35.58955647,1253.2,1253.1,0.97959789]
[1672957415747,29.6203102,1253.2,1253.1,0.97959789]
[1672957419380,35.53955647,1253.2,1253.1,0.97959789]
[1672957420117,29.6203102,1253.2,1253.1,0.97959789]
[1672957423871,35.53955647,1253.2,1253.1,0.97959789]
[1672957427927,35.53955647,1253.2,1253.1,0.97724973]
[1672957429274,43.51912647,1253.2,1253.1,0.97724973]
[1672957429499,35.53955647,1253.2,1253.1,0.97724973]
[1672957430038,43.51912647,1253.2,1253.1,0.97724973]
[1672957438240,43.56912647,1253.2,1253.1,0.97724973]
[1672957438457,43.51912647,1253.2,1253.1,0.97724973]
[1672957442622,48.32186603,1253.2,1253.1,0.97724973]
[1672957444196,53.32186603,1253.2,1253.1,0.97724973]
[1672957446446,53.37186603,1253.2,1253.1,0.97724973]
[1672957446690,53.32186603,1253.2,1253.1,0.97724973]
[1672957451924,53.32186603,1253.2,1253.1,0.97334247]
[1672957452765,48.32186603,1253.2,1253.1,0.97334247]
[1672957453142,44.11802647,1253.2,1253.1,0.97334247]
[1672957453611,48.32186603,1253.2,1253.1,0.97334247]
[1672957453819,53.32186603,1253.2,1253.1,0.97334247]
[1672957454494,49.11802647,1253.2,1253.1,0.97334247]
[1672957454704,53.32186603,1253.2,1253.1,0.97334247]
[1672957456088,49.11802647,1253.2,1253.1,0.97334247]
[1672957457028,53.32186603,1253.2,1253.1,0.97334247]
[1672957457776,49.11802647,1253.2,1253.1,0.97334247]
[1672957459874,44.11802647,1253.2,1253.1,0.97334247]
[1672957460708,49.11802647,1253.2,1253.1,0.97334247]
[1672957466057,53.32186603,1253.2,1253.1,0.97334247]
[1672957466267,49.11802647,1253.2,1253.1,0.97334247]
[1672957466711,44.11802647,1253.2,1253.1,0.97334247]
[1672957467566,48.32186603,1253.2,1253.1,0.97334247]
[1672957467898,53.32186603,1253.2,1253.1,0.97334247]
[1672957473124,52.72296603,1253.2,1253.1,0.97334247]
[1672957473804,47.72296603,1253.2,1253.1,0.97334247]
[1672957474164,43.51912647,1253.2,1253.1,0.97334247]
[1672957474834,48.51912647,1253.2,1253.1,0.97334247]
[1672957475051,52.72296603,1253.2,1253.1,0.97334247]
[1672957475373,48.51912647,1253.2,1253.1,0.97334247]
[1672957475589,52.72296603,1253.2,1253.1,0.97334247]
[1672957475895,48.51912647,1253.2,1253.1,0.97334247]
[1672957476265,48.51912647,1253.2,1253.1,0.97054118]
[1672957480609,52.72296603,1253.2,1253.1,0.97054118]
[1672957480861,47.72296603,1253.2,1253.1,0.97054118]
[1672957481539,43.51912647,1253.2,1253.1,0.97054118]
[1672957481784,48.51912647,1253.2,1253.1,0.97054118]
[1672957484748,42.5998802,1253.2,1253.1,0.97054118]
[1672957487847,37.5998802,1253.2,1253.1,0.97054118]
[1672957488960,42.5998802,1253.2,1253.1,0.97054118]
[1672957489695,48.54281972,1253.2,1253.1,0.97054118]
[1672957490787,42.5998802,1253.2,1253.1,0.97054118]
[1672957492469,48.54277131,1253.2,1253.1,0.97054118]
[1672957493124,52.53192082,1253.2,1253.1,0.97054118]
[1672957494859,47.53192082,1253.2,1253.1,0.97054118]
[1672957495860,52.53192082,1253.2,1253.1,0.97054118]
[1672957496873,52.53192082,1253.2,1253.1,1.19704118]
[1672957497064,56.73576038,1253.2,1253.1,1.19704118]
[1672957497716,57.33466038,1253.2,1253.1,1.19704118]
[1672957500010,51.39176927,1253.2,1253.1,1.19704118]
[1672957500774,51.39176927,1253.2,1253.1,1.19415979]
[1672957501882,46.39176927,1253.2,1253.1,1.19415979]
[1672957502096,42.18792971,1253.2,1253.1,1.19415979]
[1672957502357,41.58902971,1253.2,1253.1,1.19415979]
[1672957502514,45.79286927,1253.2,1253.1,1.19415979]
[1672957502923,46.58902971,1253.2,1253.1,1.19415979]
[1672957503497,50.79286927,1253.2,1253.1,1.19415979]
[1672957506132,46.58902971,1253.2,1253.1,1.19415979]
[1672957508945,41.58902971,1253.2,1253.1,1.19415979]
[1672957509913,46.58902971,1253.2,1253.1,1.19415979]
[1672957514638,44.5522148,1253.2,1253.1,1.19415979]
[1672957518222,44.54873999,1253.2,1253.1,1.19415979]
[1672957518702,36.16480414,1253.2,1253.1,1.19415979]
[1672957519267,31.16480414,1253.2,1253.1,1.19415979]
[1672957520884,36.16480414,1253.2,1253.1,1.19415979]
[1672957522351,44.14437414,1253.2,1253.1,1.19415979]
[1672957528224,43.74059668,1253.2,1253.1,1.19415979]
[1672957529292,48.18839722,1253.2,1253.1,1.19415979]
[1672957529502,52.17754673,1253.2,1253.1,1.19415979]
[1672957532354,47.17754673,1253.2,1253.1,1.19415979]
[1672957533521,52.17754673,1253.2,1253.1,1.19415979]
[1672957535779,52.77644673,1253.2,1253.1,1.19415979]
[1672957539266,52.77644673,1253.2,1253.1,1.19140221]
[1672957539482,47.77644673,1253.2,1253.1,1.19140221]
[1672957540465,52.77644673,1253.2,1253.1,1.19140221]
[1672957545774,52.17754673,1253.2,1253.1,1.19140221]
[1672957546316,47.17754673,1253.2,1253.1,1.19140221]
[1672957547407,52.17754673,1253.2,1253.1,1.19140221]
[1672957547719,46.23479164,1253.2,1253.1,1.19140221]
[1672957548141,52.17791964,1253.2,1253.1,1.19140221]
[1672957548308,46.23479164,1253.2,1253.1,1.19140221]
[1672957553375,41.23479164,1253.2,1253.1,1.19140221]
[1672957554481,46.23479164,1253.2,1253.1,1.19140221]
[1672957558629,46.63606122,1253.2,1253.1,1.19140221]
[1672957559082,45.67115901,1253.2,1253.1,0.2265]
[1672957559448,45.26988943,1253.2,1253.1,0.2265]
[1672957560510,40.26988943,1253.2,1253.1,0.2265]
[1672957561540,45.26988943,1253.2,1253.1,0.2265]
[1672957562633,12.89422938,1253.2,1253.1,0.2265]
[1672957562850,34.79797343,1253.2,1253.1,0.2265]
[1672957563219,42.77754343,1253.2,1253.1,0.2265]
[1672957567531,37.77754343,1253.2,1253.1,0.2265]
[1672957568626,42.77754343,1253.2,1253.1,0.2265]
[1672957569303,34.79797343,1253.2,1253.1,0.2265]
[1672957571260,29.79797343,1253.2,1253.1,0.2265]
[1672957574460,28.79797343,1253.2,1253.1,0.2265]
[1672957575240,36.77754343,1253.2,1253.1,0.2265]
[1672957575347,28.79797343,1253.2,1253.1,0.2265]